bitfinex-derivatives/quotes_BTCF0:USTF0_20250427
["timestamp","ask_amount","ask_price","bid_price","bid_amount"]
[1745731547744,0.36898315,93966.0,93965.0,0.2127974]
[1745731548137,0.2128595,93938.0,93920.0,0.00106473]
[1745731548436,0.2128595,93938.0,93883.0,0.00016]
[1745731548437,0.2129819,93884.0,93883.0,0.00016]
[1745731548742,0.2129819,93884.0,93848.0,0.84605631]
[1745731548743,0.2129955,93878.0,93848.0,0.84605631]
[1745731548938,0.2129955,93878.0,93849.0,0.032]
[1745731549148,0.2130001,93876.0,93875.0,0.22438217]
[1745731549437,0.6038001,93876.0,93875.0,0.09864187]
[1745731549637,1.25351197,93876.0,93875.0,0.09864187]
[1745731550141,1.029944,93876.0,93875.0,0.09864187]
[1745731550448,0.999944,93876.0,93875.0,0.31349827]
[1745731550650,0.999944,93876.0,93822.0,0.3608]
[1745731550651,0.0532551,93867.0,93822.0,0.3608]
[1745731550944,0.2130614,93849.0,93832.0,0.0532744]
[1745731551141,0.2130614,93849.0,93834.0,0.0532737]
[1745731551142,0.3808,93849.0,93834.0,0.0532737]
[1745731551443,0.3608,93837.0,93836.0,0.2130909]
[1745731551835,0.3608,93837.0,93836.0,1.1474607]
[1745731552039,0.003,93876.0,93856.0,0.2130455]
[1745731552040,0.3608,93857.0,93856.0,0.2130455]
[1745731552348,0.0532624,93855.0,93837.0,0.53756574]
[1745731552542,0.3608,93838.0,93837.0,1.1474584]
[1745731552843,0.5738863,93838.0,93837.0,0.0323]
[1745731553039,0.3608,93838.0,93837.0,1.1797584]
[1745731553235,0.3608,93846.0,93845.0,0.2130704]
[1745731553645,0.3608,93846.0,93845.0,1.1474402]
[1745731553835,0.3608,93846.0,93845.0,0.2130704]
[1745731554237,0.2130863,93838.0,93837.0,0.0323]
[1745731554543,0.3608,93838.0,93837.0,0.2453886]
[1745731554738,0.5738863,93838.0,93837.0,0.2453886]
[1745731555144,0.5738863,93838.0,93837.0,0.0323]
[1745731555643,0.5738863,93838.0,93837.0,0.2453886]
[1745731555841,0.5768863,93838.0,93837.0,0.0323]
[1745731556232,0.5768863,93838.0,93837.0,0.2453886]
[1745731556437,0.3638,93838.0,93837.0,0.2453886]
[1745731556942,0.3638,93838.0,93837.0,1.1797584]
[1745731557346,0.003,93838.0,93837.0,1.71732414]
[1745731558245,0.3608,93846.0,93845.0,0.2130704]
[1745731558749,0.3608,93846.0,93845.0,1.68500594]
[1745731559242,0.11412288,93860.0,93859.0,0.2130387]
[1745731559546,0.3608,93861.0,93860.0,0.2130364]
[1745731560742,0.5738341,93861.0,93860.0,0.2130364]
[1745731561039,0.3608,93861.0,93860.0,0.2130364]
[1745731561739,0.3608,93861.0,93860.0,0.2458364]
[1745731561935,0.3608,93861.0,93860.0,1.71777194]
[1745731562134,0.01049534,93882.0,93880.0,0.212991]
[1745731562135,0.4179,93881.0,93880.0,0.212991]
[1745731562343,0.4179,93882.0,93881.0,0.2129887]
[1745731562547,0.0052,93888.0,93887.0,0.2129751]
[1745731562844,0.00799401,93884.0,93860.0,0.005]
[1745731563044,0.3608,93879.0,93878.0,0.2129955]
[1745731563247,0.3608,93879.0,93868.0,1.2951698]
[1745731563248,0.0532494,93877.0,93868.0,0.3608]
[1745731563448,0.3608,93879.0,93875.0,0.2130023]
[1745731563449,0.0328,93876.0,93875.0,0.2130023]
[1745731563745,0.2458001,93876.0,93875.0,0.2130023]
[1745731563943,0.2129956,93878.0,93877.0,0.2129955]
[1745731564450,0.3608,93879.0,93878.0,0.2129955]
[1745731565040,0.0532493,93878.0,93871.0,0.0532526]
[1745731565244,0.0532493,93878.0,93876.0,0.2129999]
[1745731565245,0.2129978,93877.0,93876.0,0.2129999]
[1745731565651,0.2457978,93877.0,93876.0,0.2129999]
[1745731565840,0.2772978,93877.0,93876.0,0.2129999]
[1745731566746,0.2129978,93877.0,93876.0,0.2763999]
[1745731567742,0.2149978,93877.0,93876.0,0.2783999]
[1745731568850,0.002,93877.0,93876.0,0.2783999]
[1745731569148,0.0052,93918.0,93887.0,0.0532432]
[1745731569456,0.2142207,93911.0,93910.0,0.3608]
[1745731569644,0.2129343,93905.0,93904.0,0.0641]
[1745731569838,0.2129388,93903.0,93902.0,0.3608]
[1745731570037,0.2329388,93903.0,93902.0,0.3608]
[1745731570443,0.2129388,93903.0,93902.0,0.3608]
[1745731570752,0.2129388,93903.0,93902.0,0.5737411]
[1745731570947,0.2139388,93903.0,93902.0,0.5777411]
[1745731571842,0.2139388,93903.0,93902.0,1.11530684]
[1745731572150,0.001,93903.0,93902.0,1.11530684]
[1745731572653,0.0013,93911.0,93910.0,0.212923]
[1745731572861,0.0013,93911.0,93910.0,0.573723]
[1745731573057,0.0013,93911.0,93910.0,1.17668874]
[1745731574250,0.2152207,93911.0,93910.0,1.18268874]
[1745731576154,0.2152207,93911.0,93910.0,1.17668874]
[1745731576345,0.2142207,93911.0,93910.0,1.17968874]
[1745731576554,0.0013,93911.0,93910.0,1.27076874]
[1745731576857,0.2142207,93911.0,93910.0,1.27076874]
[1745731577249,0.2142207,93911.0,93910.0,1.26776874]
[1745731577445,0.2142207,93911.0,93910.0,1.27076874]
[1745731577948,0.2142207,93911.0,93910.0,1.26976874]
[1745731578145,0.0013,93911.0,93910.0,1.26976874]
[1745731578955,0.21398901,93911.0,93910.0,1.26976874]
[1745731579156,0.00106831,93911.0,93910.0,1.26976874]
[1745731579557,0.21398901,93911.0,93910.0,1.26976874]
[1745731580049,0.00106831,93911.0,93910.0,0.006]
[1745731580244,0.50356831,93911.0,93887.0,0.3608]
[1745731580557,0.2129729,93888.0,93887.0,0.3608]
[1745731581350,0.2768729,93888.0,93887.0,0.3718]
[1745731581757,0.2129685,93890.0,93889.0,0.2129683]
[1745731582053,0.4179,93895.0,93894.0,0.2129592]
[1745731582462,0.4179,93895.0,93894.0,0.75052494]
[1745731582659,0.4179,93895.0,93894.0,1.00052494]
[1745731582850,0.21398901,93911.0,93910.0,0.212923]
[1745731583051,0.21398901,93911.0,93910.0,0.934523]
[1745731583252,0.21398901,93911.0,93910.0,1.47208874]
[1745731584059,0.21498901,93911.0,93910.0,0.938523]
[1745731584655,0.21498901,93911.0,93910.0,0.7256]
[1745731584858,0.21498901,93911.0,93910.0,0.3648]
[1745731585159,0.21498901,93911.0,93910.0,0.004]
[1745731585565,0.22498901,93911.0,93910.0,0.004]
[1745731586263,0.2129343,93905.0,93904.0,0.3608]
[1745731587051,0.2443343,93905.0,93904.0,0.3608]
[1745731587361,0.2453343,93905.0,93904.0,0.3658]
[1745731587549,0.2553343,93905.0,93904.0,0.3658]
[1745731590558,0.2239343,93905.0,93904.0,0.3658]
[1745731590766,0.2239343,93905.0,93904.0,0.90336574]
[1745731590952,0.2139343,93905.0,93904.0,0.90336574]
[1745731591265,0.25796398,93905.0,93904.0,0.90336574]
[1745731591853,0.04502968,93905.0,93904.0,1.11630234]
[1745731592358,0.00106831,93911.0,93910.0,0.212923]
[1745731592561,0.00106831,93911.0,93910.0,1.11128874]
[1745731593168,0.00106831,93911.0,93910.0,1.23128874]
[1745731593562,0.21498901,93911.0,93910.0,1.23728874]
[1745731594359,0.00206831,93911.0,93910.0,1.32648874]
[1745731594862,0.21498901,93911.0,93910.0,1.32648874]
[1745731595567,0.21498901,93911.0,93910.0,1.23728874]
[1745731595766,0.21398901,93911.0,93910.0,1.32048874]
[1745731595966,0.21398901,93911.0,93910.0,1.32248874]
[1745731596264,0.21398901,93911.0,93910.0,0.98956574]
[1745731596764,0.21398901,93911.0,93910.0,1.20248874]
[1745731597264,0.24648901,93911.0,93910.0,0.98956574]
[1745731597454,0.27928901,93911.0,93910.0,0.98956574]
[1745731597858,0.27928901,93911.0,93910.0,1.20248874]
[1745731598458,0.21398901,93911.0,93910.0,1.20248874]
[1745731598854,0.21398901,93911.0,93910.0,1.20448874]
[1745731599567,0.21398901,93911.0,93910.0,1.20348874]
[1745731603863,0.22398901,93911.0,93910.0,1.20348874]
[1745731604866,0.22398901,93911.0,93910.0,1.11428874]
[1745731605063,0.22398901,93911.0,93910.0,0.90136574]
[1745731605458,0.22398901,93911.0,93910.0,0.93386574]
[1745731605769,0.22398901,93911.0,93910.0,0.3638]
[1745731608061,0.0532345,93904.0,93889.0,0.3608]
[1745731608269,0.2129683,93890.0,93889.0,0.3608]
[1745731608465,0.2129933,93879.0,93878.0,0.3608]
[1745731608670,0.212991,93880.0,93879.0,0.53756574]
[1745731608876,0.2130046,93874.0,93873.0,0.3608]
[1745731609265,0.2130046,93874.0,93873.0,0.89836574]
[1745731609466,0.2130046,93874.0,93873.0,1.11137264]
[1745731609759,0.2130046,93874.0,93873.0,1.11273967]
[1745731610165,0.2130046,93874.0,93873.0,0.89973277]
[1745731610473,0.2130046,93874.0,93873.0,0.96203277]
[1745731610875,0.2230046,93874.0,93873.0,0.96203277]
[1745731611068,0.2230046,93874.0,93873.0,0.97103277]
[1745731611274,0.2240046,93874.0,93873.0,0.97103277]
[1745731611894,0.2240046,93874.0,93863.0,0.0532572]
[1745731611895,0.728328,93874.0,93835.0,0.00647824]
[1745731612179,0.728328,93874.0,93831.0,0.0323]
[1745731612180,0.2131,93832.0,93831.0,0.0323]
[1745731612478,0.5739,93832.0,93831.0,0.0323]
[1745731612678,0.5839,93832.0,93831.0,0.0323]
[1745731612977,0.2131022,93831.0,93827.0,0.00532893]
[1745731613182,0.213109,93828.0,93827.0,0.00532893]
[1745731613379,0.2131658,93803.0,93796.0,0.08856]
[1745731613572,0.5739658,93803.0,93801.0,0.0322]
[1745731613777,0.3608,93803.0,93802.0,0.96925767]
[1745731614678,0.3608,93803.0,93802.0,1.00245767]
[1745731614879,0.3608,93822.0,93821.0,0.2131249]
[1745731615176,0.3608,93822.0,93810.0,0.3608]
[1745731615378,0.17201856,93820.0,93819.0,0.2131295]
[1745731615580,0.2131272,93820.0,93819.0,0.2131295]
[1745731615771,0.0618,93820.0,93819.0,0.2131295]
[1745731616081,0.031,93820.0,93819.0,0.2131295]
[1745731616272,0.2441297,93820.0,93819.0,0.2131295]
[1745731616672,0.2461297,93820.0,93819.0,0.2131295]
[1745731616969,0.2461297,93820.0,93819.0,0.75069524]
[1745731616970,0.002,93820.0,93819.0,0.75069524]
[1745731618178,0.002,93820.0,93819.0,0.87069524]
[1745731618478,0.002,93820.0,93819.0,0.93429524]
[1745731620583,1e-07,93820.0,93819.0,0.93429524]
[1745731620776,0.5217116,93857.0,93846.0,0.2130682]
[1745731620970,0.3608,93847.0,93846.0,0.61730663]
[1745731621283,0.1609116,93857.0,93856.0,0.2130455]
[1745731621579,0.1609116,93857.0,93856.0,0.61728393]
[1745731622181,0.1609116,93857.0,93856.0,0.79908393]
[1745731622773,0.1619116,93857.0,93856.0,0.80208393]
[1745731623682,0.1619116,93857.0,87900.0,0.2]
[1745731623683,0.2131057,93830.0,93829.0,0.2131041]
[1745731623988,0.2130887,93837.0,93836.0,0.213088]
[1745731624181,0.2130827,93840.0,93839.0,0.2130785]
[1745731624575,0.0317,93842.0,93841.0,0.2130795]
[1745731624778,0.2663385,93848.0,93847.0,0.2130659]
[1745731624984,0.2966385,93848.0,93847.0,0.2130659]
[1745731625187,0.4166385,93848.0,93847.0,0.2130659]
[1745731625682,0.2035663,93848.0,93844.0,0.0307]
[1745731625885,0.2130704,93845.0,93844.0,0.64800853]
[1745731626080,0.3330704,93845.0,93844.0,0.2762701]
[1745731626285,0.3330704,93845.0,93844.0,0.0307]
[1745731626480,0.3330704,93845.0,93844.0,0.2437727]
[1745731626684,0.3330704,93845.0,93844.0,0.0307]
[1745731627489,0.3340704,93845.0,93844.0,0.002]
[1745731627890,0.45063041,93845.0,93844.0,0.002]
[1745731628184,0.81143041,93845.0,93844.0,0.002]
[1745731630587,0.2130954,93834.0,93833.0,0.2663692]
[1745731630884,0.5738954,93834.0,93833.0,0.2663692]
[1745731631084,0.5738954,93834.0,93833.0,0.67060763]
[1745731631487,0.6358954,93834.0,93833.0,0.67060763]
[1745731632086,0.6368954,93834.0,93833.0,0.67060763]
[1745731632288,0.6368954,93834.0,93833.0,0.61733343]
[1745731632688,0.6368954,93834.0,93829.0,0.0886]
[1745731632689,0.2131045,93830.0,93829.0,0.0886]
[1745731632884,0.2131045,93830.0,93829.0,0.3017068]
[1745731633188,0.2131045,93830.0,93829.0,0.70594523]
[1745731633988,0.2131045,93830.0,93829.0,0.49283843]
[1745731634179,0.2141045,93830.0,93829.0,0.49483843]
[1745731635795,0.2141045,93830.0,93829.0,0.55663843]
[1745731637085,0.2141045,93830.0,93829.0,0.46803843]
[1745731637884,0.2241045,93830.0,93829.0,0.46803843]
[1745731638285,0.2241045,93830.0,93829.0,0.43793843]
[1745731638487,0.2241045,93830.0,93829.0,0.002]
[1745731639088,1.53798202,93830.0,93829.0,1e-07]
[1745731639289,1.65798202,93830.0,93829.0,1e-07]
[1745731639685,1.72088202,93830.0,93829.0,1e-07]
[1745731640281,0.2131545,93808.0,93807.0,0.0305]
[1745731640485,0.5739545,93808.0,93807.0,0.0305]
[1745731640680,0.5739545,93808.0,93807.0,0.43473843]
[1745731641093,0.6374545,93808.0,93807.0,0.55473843]
[1745731641888,0.6394545,93808.0,93807.0,0.55473843]
[1745731642989,0.64729926,93808.0,93807.0,0.55473843]
[1745731646389,0.002,93808.0,93807.0,1.12869513]
[1745731646594,0.3608,93830.0,93829.0,0.2131068]
[1745731646900,0.2131204,93823.0,93822.0,0.08868]
[1745731647085,0.2131204,93823.0,93822.0,0.20868]
[1745731647290,0.2131204,93823.0,93822.0,0.52423843]
[1745731647990,0.2141204,93823.0,93822.0,0.12]
[1745731648186,0.213134,93817.0,93816.0,0.08868]
[1745731648390,0.573934,93817.0,93816.0,0.08868]
[1745731648587,0.573934,93817.0,93816.0,0.49291843]
[1745731648790,0.573934,93817.0,93816.0,0.08868]
[1745731649187,0.693934,93817.0,93816.0,0.08868]
[1745731649388,0.703934,93817.0,93816.0,0.08868]
[1745731649594,0.705934,93817.0,93816.0,0.09068]
[1745731651089,0.585934,93817.0,93816.0,0.21068]
[1745731651898,0.585934,93817.0,93816.0,0.122]
[1745731654090,0.575934,93817.0,93816.0,0.3351363]
[1745731654291,0.6200048,93817.0,93816.0,0.122]
[1745731655199,0.6300048,93817.0,93816.0,0.002]
[1745731656100,0.62983974,93817.0,93816.0,0.002]
[1745731656699,0.2131636,93804.0,93803.0,0.0629]
[1745731656915,0.5739636,93804.0,93803.0,0.0629]
[1745731657101,0.5739636,93804.0,93803.0,0.46713843]
[1745731657303,0.5739636,93804.0,93803.0,0.58713843]
[1745731657697,0.5759636,93804.0,93803.0,0.58913843]
[1745731659601,0.5959636,93804.0,93803.0,0.58913843]
[1745731660404,0.6281636,93804.0,93803.0,0.58913843]
[1745731661494,0.63458367,93804.0,93803.0,0.58913843]
[1745731661697,0.63458367,93804.0,93797.0,0.00533063]
[1745731661698,0.77802407,93804.0,93797.0,0.00533063]
[1745731661898,0.3608,93798.0,93765.0,0.3608]
[1745731662103,0.213234,93773.0,93772.0,0.40423843]
[1745731662807,0.213234,93773.0,93772.0,0.61747473]
[1745731663204,0.213234,93773.0,93772.0,0.73747473]
[1745731663404,0.22326735,93773.0,93772.0,0.52623843]
[1745731663598,0.28726735,93773.0,93772.0,0.52623843]
[1745731664098,0.25316735,93773.0,93772.0,0.52623843]
[1745731664499,0.25216735,93773.0,93772.0,0.73747473]
[1745731664702,0.22226735,93773.0,93772.0,0.73947473]
[1745731664898,0.00903335,93773.0,93772.0,0.73947473]
[1745731665211,0.22226735,93773.0,93772.0,0.73947473]
[1745731665712,0.22226735,93773.0,93772.0,0.80507473]
[1745731666309,0.22226735,93773.0,93756.0,0.053318]
[1745731666310,0.2132932,93749.0,93748.0,0.2132893]
[1745731666607,0.2132932,93749.0,93746.0,0.3608]
[1745731666608,0.2132494,93770.0,93769.0,0.2132389]
[1745731667107,0.26656,93770.0,93769.0,0.59688773]
[1745731667608,0.2132382,93772.0,93771.0,0.2132363]
[1745731667803,0.05210415,93773.0,93772.0,0.47688513]
[1745731668197,0.05210415,93773.0,93772.0,0.59688513]
[1745731668505,0.3608,93794.0,93793.0,0.2131886]
[1745731668701,0.5739863,93794.0,93793.0,0.2131886]
[1745731668898,0.3608,93794.0,93793.0,0.2131886]
[1745731669099,0.36864347,93794.0,93793.0,0.3331886]
[1745731669613,0.58282977,93794.0,93793.0,0.3331886]
[1745731672812,0.58382977,93794.0,93793.0,0.3331886]
[1745731673307,0.58582977,93794.0,93793.0,0.3341886]
[1745731673709,0.37264347,93794.0,93793.0,0.3341886]
[1745731674812,0.58582977,93794.0,93793.0,0.3341886]
[1745731675109,0.09281983,93794.0,93793.0,0.3341886]
[1745731675297,0.08881983,93794.0,93793.0,0.3331886]
[1745731675498,0.09281983,93794.0,93793.0,0.3341886]
[1745731675907,0.08881983,93794.0,93793.0,0.3331886]
[1745731676106,0.08981983,93794.0,93793.0,0.3331886]
[1745731676513,0.08881983,93794.0,93793.0,0.3331886]
[1745731676701,0.09281983,93794.0,93793.0,0.3341886]
[1745731677102,0.08881983,93794.0,93793.0,0.3331886]
[1745731677302,0.08981983,93794.0,93793.0,0.3331886]
[1745731678607,0.30300613,93794.0,93793.0,0.3331886]
[1745731678910,0.30600613,93794.0,93793.0,0.3341886]
[1745731679111,0.09281983,93794.0,93793.0,0.3341886]
[1745731679513,0.01184347,93794.0,93793.0,0.3341886]
[1745731679817,0.01084347,93794.0,93793.0,0.3331886]
[1745731680313,0.01184347,93794.0,93793.0,0.3341886]
[1745731680618,0.15388762,93800.0,93795.0,0.0532956]
[1745731680806,0.21150321,93809.0,93804.0,0.2131636]
[1745731681220,0.21150321,93809.0,93808.0,0.2131545]
[1745731681411,0.21150321,93809.0,93808.0,0.5739545]
[1745731681608,0.0302,93827.0,93818.0,0.2131318]
[1745731681905,0.0052,93828.0,93818.0,0.6655318]
[1745731682213,0.0052,93828.0,93818.0,0.7855318]
[1745731682510,0.0052,93828.0,93818.0,0.89211979]
[1745731682711,1e-08,93821.0,93820.0,0.2131272]
[1745731683215,1e-08,93821.0,93820.0,1.25294519]
[1745731684010,1e-08,93821.0,93820.0,0.3634272]
[1745731684214,0.21312491,93821.0,93820.0,0.1503]
[1745731684511,1e-08,93821.0,93820.0,0.3634272]
[1745731686514,0.03310001,93821.0,93820.0,0.3664272]
[1745731686924,0.06570001,93821.0,93820.0,0.3664272]
[1745731687110,0.06570001,93821.0,93820.0,0.3644272]
[1745731688206,0.06570001,93821.0,93820.0,0.3634272]
[1745731689718,0.06670001,93821.0,93820.0,0.3634272]
[1745731689918,0.03410001,93821.0,93820.0,0.3634272]
[1745731690219,0.00100001,93821.0,93820.0,0.3634272]
[1745731690720,0.00100001,93821.0,93820.0,0.12]
[1745731690920,0.21412491,93821.0,93820.0,0.12]
[1745731691111,0.21412491,93821.0,93820.0,0.2131272]
[1745731691312,0.61180001,93821.0,93812.0,0.09156]
[1745731691514,0.00100001,93821.0,93820.0,0.2131272]
[1745731691915,0.00100001,93821.0,93820.0,0.3046872]
[1745731692417,0.00100001,93821.0,93820.0,0.41127519]
[1745731692624,0.00100001,93821.0,93820.0,0.38131519]
[1745731692825,0.00100001,93821.0,93820.0,0.47287519]
[1745731693214,0.00100001,93821.0,93820.0,0.59287519]
[1745731693414,0.16182738,93821.0,93820.0,0.59287519]
[1745731693622,0.16182738,93821.0,93820.0,0.50131519]
[1745731693822,0.16182738,93821.0,93820.0,0.59287519]
[1745731694923,0.16182738,93821.0,93820.0,0.4862872]
[1745731695123,0.16182738,93821.0,93820.0,0.4246872]
[1745731696221,0.16182738,93821.0,93820.0,0.47407519]
[1745731696424,0.06805763,93826.0,93825.0,0.2131159]
[1745731696623,0.0052,93828.0,93827.0,0.2131113]
[1745731696624,1e-08,93828.0,93827.0,0.2131113]
[1745731696823,0.03779417,93839.0,93838.0,0.2130863]
[1745731697029,0.04225617,93847.0,93846.0,0.2130682]
[1745731697227,0.00223747,93849.0,93848.0,0.2130636]
[1745731697527,7e-08,93858.0,93857.0,0.2130432]
[1745731697727,7e-08,93858.0,93857.0,0.5738432]
[1745731697925,7e-08,93858.0,93857.0,0.68760274]
[1745731698132,7e-08,93858.0,93857.0,0.8003872]
[1745731698428,7e-08,93858.0,93857.0,0.8617872]
[1745731700126,7e-08,93858.0,93857.0,0.8647872]
[1745731700529,7e-08,93858.0,93857.0,0.8617872]
[1745731700827,7e-08,93858.0,93857.0,0.8657872]
[1745731701231,7e-08,93858.0,93857.0,0.8647872]
[1745731701430,7e-08,93858.0,93857.0,1.3975072]
[1745731701829,7e-08,93858.0,93857.0,1.3985072]
[1745731702036,7e-08,93858.0,93857.0,0.8657872]
[1745731702224,7e-08,93858.0,93857.0,1.6485072]
[1745731702425,7e-08,93858.0,93857.0,2.0573072]
[1745731703427,7e-08,93858.0,93857.0,2.0553072]
[1745731703730,7e-08,93858.0,93857.0,2.1468672]
[1745731703933,7e-08,93858.0,93857.0,1.3621472]
[1745731704135,7e-08,93858.0,93857.0,1.3661472]
[1745731705121,7e-08,93858.0,93857.0,1.3629872]
[1745731705537,7e-08,93858.0,93857.0,1.1950432]
[1745731706031,0.06510007,93858.0,93857.0,1.1950432]
[1745731706235,0.06510007,93858.0,93857.0,1.0750432]
[1745731706629,7e-08,93858.0,93857.0,1.1344432]
[1745731706827,7e-08,93858.0,93857.0,1.2429872]
[1745731707242,7e-08,93858.0,93857.0,1.3629872]
[1745731707529,7e-08,93858.0,93857.0,1.3619872]
[1745731707923,0.0325,93880.0,93857.0,1.3619872]
[1745731708124,0.0325,93880.0,93879.0,0.5737933]
[1745731708324,0.0325,93880.0,93879.0,0.6621933]
[1745731708933,0.0325,93880.0,93879.0,0.7227933]
[1745731709339,0.0631,93880.0,93879.0,0.7227933]
[1745731710434,0.0306,93880.0,93879.0,0.7227933]
[1745731710625,0.0052,93888.0,93884.0,0.0532451]
[1745731710825,0.0052,93888.0,93887.0,0.5737751]
[1745731711236,0.0301,93895.0,93894.0,0.2129592]
[1745731712232,0.0301,93895.0,93894.0,0.3329592]
[1745731712442,0.032,93899.0,93898.0,0.2129502]
[1745731712738,0.032,93899.0,93898.0,0.6621502]
[1745731713132,0.0621,93899.0,93898.0,0.6621502]
[1745731713332,0.2750479,93899.0,93898.0,0.0884]
[1745731713639,0.3121,93899.0,93898.0,0.0884]
[1745731713833,1.0575379,93899.0,93898.0,0.3013502]
[1745731714035,1.0575379,93899.0,93898.0,0.0884]
[1745731714036,0.5250479,93899.0,93898.0,0.0884]
[1745731714237,0.3950479,93899.0,93898.0,0.0884]
[1745731714435,1.1825379,93899.0,93898.0,0.0894]
[1745731714825,1.1825379,93899.0,93885.0,0.2129748]
[1745731714826,0.2662293,93886.0,93885.0,0.2129748]
[1745731715137,0.2129887,93882.0,93880.0,0.4088]
[1745731715335,0.032,93881.0,93880.0,0.621791]
[1745731715632,0.2755887,93881.0,93880.0,0.710191]
[1745731716336,0.3955887,93881.0,93880.0,0.710191]
[1745731716732,0.1826,93881.0,93880.0,0.710191]
[1745731716927,0.1846,93881.0,93880.0,0.710191]
[1745731717130,0.1846,93881.0,93880.0,0.301391]
[1745731717933,0.1846,93881.0,93880.0,0.331391]
[1745731718128,0.1526,93881.0,93880.0,0.242991]
[1745731718328,0.0326,93881.0,93880.0,0.331391]
[1745731718637,0.002,93881.0,93880.0,0.331391]
[1745731718836,0.0306,93898.0,93897.0,0.2129524]
[1745731719037,0.0306,93898.0,93897.0,0.5737524]
[1745731719225,0.1506,93898.0,93897.0,0.5737524]
[1745731719941,0.1556,93898.0,93897.0,0.5747524]
[1745731720135,0.0356,93898.0,93897.0,0.5747524]
[1745731720939,0.0356,93898.0,93897.0,0.9355524]
[1745731723436,0.2485502,93898.0,93897.0,0.3618]
[1745731723730,0.2485502,93898.0,93897.0,0.5747524]
[1745731723931,0.2485502,93898.0,93897.0,0.6631124]
[1745731724141,0.3685502,93898.0,93897.0,0.6631124]
[1745731724642,0.3685502,93898.0,93897.0,0.3023124]
[1745731724947,0.7293502,93898.0,93897.0,0.3023124]
[1745731725245,0.3685502,93898.0,93897.0,0.3023124]
[1745731725838,1.4454,93898.0,93884.0,0.2129818]
[1745731726048,0.2129819,93885.0,93884.0,0.2129818]
[1745731726344,0.2129819,93884.0,93883.0,0.3608]
[1745731726649,0.2129978,93877.0,93876.0,0.2662408]
[1745731726847,0.2129978,93877.0,93876.0,0.3546008]
[1745731727147,0.3329978,93877.0,93876.0,0.3546008]
[1745731727746,0.3959978,93877.0,93876.0,0.3546008]
[1745731728248,0.183,93877.0,93876.0,0.3546008]
[1745731729144,0.033,93877.0,93876.0,0.3546008]
[1745731729449,0.3608,93898.0,93884.0,0.0532453]
[1745731729643,0.0609,93889.0,93885.0,0.1390892]
[1745731729844,0.0609,93889.0,93888.0,0.2129729]
[1745731730649,0.2738706,93889.0,93888.0,0.2129729]
[1745731730851,0.2768706,93889.0,93888.0,0.2129729]
[1745731731149,0.3968706,93889.0,93888.0,0.08836]
[1745731731745,0.3968706,93889.0,93888.0,0.3013329]
[1745731732141,0.4068706,93889.0,93888.0,0.3013329]
[1745731732348,0.1839,93889.0,93888.0,0.3013329]
[1745731732736,0.1539,93889.0,93888.0,0.3013329]
[1745731733136,0.0339,93889.0,93888.0,0.3631329]
[1745731735336,0.003,93889.0,93888.0,0.3631329]
[1745731736041,0.003,93889.0,93888.0,0.4831329]
[1745731737248,0.003,93889.0,93888.0,0.3631329]
[1745731737547,0.003,93889.0,93888.0,0.2747729]
[1745731737844,0.003,93889.0,93888.0,0.3602929]
[1745731742345,0.003,93889.0,93888.0,0.7210929]
[1745731743144,0.003,93889.0,93888.0,0.3602929]
[1745731743351,0.003,93889.0,93888.0,0.7210929]
[1745731747156,0.003,93889.0,93888.0,0.8410929]
[1745731749154,0.003,93889.0,93888.0,0.7210929]
[1745731751759,0.003,93889.0,93888.0,0.7210529]
[1745731752963,1e-07,93889.0,93888.0,0.7210529]
[1745731753262,0.1,93900.0,93899.0,0.2129479]
[1745731753464,0.1,93900.0,93899.0,0.5737479]
[1745731754054,0.1,93900.0,93899.0,0.6361479]
[1745731754564,0.1,93900.0,93899.0,0.6040479]
[1745731754865,0.1,93900.0,93891.0,0.053241]
[1745731754866,0.2129706,93889.0,93888.0,0.08548]
[1745731755166,0.3329706,93889.0,93888.0,0.2984529]
[1745731755462,0.12,93889.0,93888.0,0.2984529]
[1745731756263,0.122,93889.0,93888.0,0.2984529]
[1745731758164,0.002,93889.0,93888.0,0.2984529]
[1745731758966,0.5757706,93889.0,93888.0,0.2984529]
[1745731759267,0.6957706,93889.0,93888.0,0.2984529]
[1745731759969,0.4828,93889.0,93888.0,0.2984529]
[1745731760262,0.6957706,93889.0,93888.0,0.2984529]
[1745731761163,0.7057706,93889.0,93888.0,0.2129729]
[1745731762558,0.4928,93889.0,93888.0,0.2129729]
[1745731762769,0.4828,93889.0,93888.0,0.2129729]
[1745731763666,0.6957706,93889.0,93888.0,0.2129729]
[1745731763869,0.7598706,93889.0,93888.0,0.2129729]
[1745731764168,0.5469,93889.0,93888.0,0.2129729]
[1745731765260,0.7598706,93889.0,93888.0,0.2129729]
[1745731767659,0.5469,93889.0,93888.0,0.2129729]
[1745731768065,0.0661,93889.0,93888.0,0.2129729]
[1745731768567,0.2129797,93885.0,93884.0,0.08548]
[1745731768870,0.2662323,93884.0,93883.0,0.2129824]
[1745731769069,0.4182323,93884.0,93883.0,0.2944624]
[1745731769271,0.3649865,93884.0,93883.0,0.2944624]
[1745731769477,0.3649865,93884.0,93883.0,0.08148]
[1745731770171,0.48150251,93884.0,93883.0,0.08148]
[1745731770470,0.51280251,93884.0,93883.0,0.08148]
[1745731770970,0.51380251,93884.0,93883.0,0.08148]
[1745731771168,0.2130069,93873.0,93872.0,0.08148]
[1745731771364,0.5738069,93873.0,93872.0,0.08148]
[1745731771764,0.6803349,93873.0,93872.0,1e-08]
[1745731771975,0.2662947,93863.0,93862.0,0.0532577]
[1745731772163,0.3862947,93863.0,93862.0,0.0532577]
[1745731772861,0.3962947,93863.0,93862.0,0.0532577]
[1745731773062,0.3962947,93863.0,93862.0,0.0572577]
[1745731773272,0.40427577,93863.0,93862.0,0.0572577]
[1745731773774,0.40427577,93863.0,93862.0,0.2702895]
[1745731774068,0.87161577,93863.0,93862.0,0.004]
[1745731775061,0.87161577,93863.0,93849.0,0.08148]
[1745731775062,0.2130409,93858.0,93855.0,0.213046]
[1745731775366,0.2330409,93858.0,93853.0,0.0532629]
[1745731775568,0.3395849,93858.0,93853.0,0.0532629]
[1745731775869,0.3395849,93858.0,93852.0,0.2130535]
[1745731776172,0.4595849,93858.0,93853.0,0.2130512]
[1745731776970,0.4595849,93858.0,93854.0,0.2130491]
[1745731777171,0.3530409,93858.0,93854.0,0.2130491]
[1745731777362,0.3530409,93858.0,93855.0,0.2130472]
[1745731777761,0.12,93858.0,93857.0,0.21837042]
[1745731778167,0.3608,93863.0,93859.0,0.0532593]
[1745731778361,0.3608,93863.0,93862.0,0.2130318]
[1745731779468,0.3638,93863.0,93862.0,0.2130318]
[1745731779673,0.3638,93863.0,93860.0,0.1184587]